[Event "Titled Tuesday Blitz May 4 2021"]
[White "Budrewicz, Krzysztof"]
[Black "Zhukov, Anton"]
[WhiteFideId "1127950"]
[BlackFideId "34187534"]
[WhiteElo "2276"]
[BlackElo "2172"]
[Result "1/2-1/2"]
[Round "06"]
[TimeControl "180+1"]
[Date "2021.05.04"]
[WhiteClock "0:00:13"]
[BlackClock "0:00:13"]

1. d4 {[%clk 0:03:00]}  Nf6 {[%clk 0:02:59]} 2. c4 {[%clk 0:03:00]}  e6 {[%clk 0:02:59]} 3. Nf3 {[%clk 0:03:00]}  Bb4+ {[%clk 0:02:59]} 4. Nbd2 {[%clk 0:02:59]}  O-O {[%clk 0:02:57]} 5. a3 {[%clk 0:03:00]}  Be7 {[%clk 0:02:57]} 6. e4 {[%clk 0:03:00]}  d6 {[%clk 0:02:58]} 7. Bd3 {[%clk 0:02:59]}  Nbd7 {[%clk 0:02:58]} 8. O-O {[%clk 0:02:58]}  e5 {[%clk 0:02:58]} 9. b3 {[%clk 0:02:58]}  c5 {[%clk 0:02:53]} 10. dxe5 {[%clk 0:02:51]}  Nxe5 {[%clk 0:02:52]} 11. Be2 {[%clk 0:02:49]}  Nxf3+ {[%clk 0:02:50]} 12. Bxf3 {[%clk 0:02:48]}  Nd7 {[%clk 0:02:50]} 13. Be2 {[%clk 0:02:45]}  Bf6 {[%clk 0:02:48]} 14. Ra2 {[%clk 0:02:45]}  Ne5 {[%clk 0:02:48]} 15. f4 {[%clk 0:02:43]}  Nc6 {[%clk 0:02:47]} 16. Nf3 {[%clk 0:02:43]}  Re8 {[%clk 0:02:46]} 17. Bd3 {[%clk 0:02:43]}  Bg4 {[%clk 0:02:45]} 18. Be3 {[%clk 0:02:37]}  Bd4 {[%clk 0:02:42]} 19. Qe1 {[%clk 0:02:27]}  Bxf3 {[%clk 0:02:38]} 20. Rxf3 {[%clk 0:02:27]}  Bxe3+ {[%clk 0:02:39]} 21. Qxe3 {[%clk 0:02:26]}  Qf6 {[%clk 0:02:39]} 22. Rh3 {[%clk 0:02:23]}  Qd4 {[%clk 0:02:35]} 23. Qxd4 {[%clk 0:02:20]}  Nxd4 {[%clk 0:02:35]} 24. b4 {[%clk 0:02:13]}  b6 {[%clk 0:02:33]} 25. Kf2 {[%clk 0:02:08]}  a5 {[%clk 0:02:30]} 26. b5 {[%clk 0:02:05]}  g6 {[%clk 0:02:26]} 27. Rd2 {[%clk 0:02:04]}  Kg7 {[%clk 0:02:25]} 28. Bb1 {[%clk 0:01:58]}  Re7 {[%clk 0:02:24]} 29. Ke3 {[%clk 0:01:52]}  Rae8 {[%clk 0:02:23]} 30. Rxd4 {[%clk 0:01:52]}  cxd4+ {[%clk 0:02:22]} 31. Kxd4 {[%clk 0:01:52]}  Rc7 {[%clk 0:02:23]} 32. Bd3 {[%clk 0:01:51]}  Rc5 {[%clk 0:02:22]} 33. g4 {[%clk 0:01:50]}  f6 {[%clk 0:02:17]} 34. Re3 {[%clk 0:01:48]}  h5 {[%clk 0:02:15]} 35. h3 {[%clk 0:01:44]}  hxg4 {[%clk 0:02:15]} 36. hxg4 {[%clk 0:01:44]}  Rh8 {[%clk 0:02:13]} 37. Kc3 {[%clk 0:01:35]}  g5 {[%clk 0:02:13]} 38. f5 {[%clk 0:01:33]}  Rh1 {[%clk 0:02:08]} 39. Be2 {[%clk 0:01:31]}  Kf7 {[%clk 0:02:06]} 40. Rd3 {[%clk 0:01:24]}  Ke7 {[%clk 0:02:06]} 41. Re3 {[%clk 0:01:21]}  Rc8 {[%clk 0:02:06]} 42. Kd4 {[%clk 0:01:12]}  Rch8 {[%clk 0:02:00]} 43. Kd5 {[%clk 0:01:02]}  Kd7 {[%clk 0:02:00]} 44. Rd3 {[%clk 0:00:57]}  R8h2 {[%clk 0:01:57]} 45. Bf3 {[%clk 0:00:57]}  Rf1 {[%clk 0:01:55]} 46. c5 {[%clk 0:00:55]}  bxc5 {[%clk 0:01:53]} 47. b6 {[%clk 0:00:54]}  Rb1 {[%clk 0:01:52]} 48. e5 {[%clk 0:00:51]}  fxe5 {[%clk 0:01:49]} 49. f6 {[%clk 0:00:50]}  Rxb6 {[%clk 0:01:48]} 50. Be4 {[%clk 0:00:50]}  Ke8 {[%clk 0:01:25]} 51. Bg6+ {[%clk 0:00:43]}  Kf8 {[%clk 0:01:23]} 52. Ke6 {[%clk 0:00:43]}  d5+ {[%clk 0:01:12]} 53. Kxe5 {[%clk 0:00:43]}  Re2+ {[%clk 0:01:12]} 54. Kxd5 {[%clk 0:00:42]}  Rxf6 {[%clk 0:01:12]} 55. Bf5 {[%clk 0:00:43]}  Rb2 {[%clk 0:00:49]} 56. Kxc5 {[%clk 0:00:41]}  Rfb6 {[%clk 0:00:49]} 57. a4 {[%clk 0:00:40]}  R6b4 {[%clk 0:00:46]} 58. Rd8+ {[%clk 0:00:29]}  Ke7 {[%clk 0:00:46]} 59. Rd7+ {[%clk 0:00:28]}  Ke8 {[%clk 0:00:46]} 60. Ra7 {[%clk 0:00:25]}  Ra2 {[%clk 0:00:24]} 61. Kd6 {[%clk 0:00:12]}  Rd2+ {[%clk 0:00:23]} 62. Ke6 {[%clk 0:00:12]}  Rb6+ {[%clk 0:00:22]} 63. Ke5 {[%clk 0:00:11]}  Re2+ {[%clk 0:00:23]} 64. Kd5 {[%clk 0:00:11]}  Rd2+ {[%clk 0:00:21]} 65. Kc5 {[%clk 0:00:11]}  Rb4 {[%clk 0:00:18]} 66. Rxa5 {[%clk 0:00:11]}  Rdd4 {[%clk 0:00:18]} 67. Ra7 {[%clk 0:00:10]}  Rbc4+ {[%clk 0:00:15]} 68. Kb5 {[%clk 0:00:10]}  Rb4+ {[%clk 0:00:15]} 69. Kc5 {[%clk 0:00:09]}  Rbc4+ {[%clk 0:00:15]} 70. Kb6 {[%clk 0:00:09]}  Rxa4 {[%clk 0:00:15]} 71. Bd7+ {[%clk 0:00:08]}  Rxd7 {[%clk 0:00:11]} 72. Rxa4 {[%clk 0:00:09]}  Ke7 {[%clk 0:00:11]} 73. Kc6 {[%clk 0:00:08]}  Rd6+ {[%clk 0:00:11]} 74. Kc5 {[%clk 0:00:09]}  Rd1 {[%clk 0:00:10]} 75. Re4+ {[%clk 0:00:08]}  Kf6 {[%clk 0:00:10]} 76. Kc4 {[%clk 0:00:08]}  Kg6 {[%clk 0:00:10]} 77. Kc3 {[%clk 0:00:08]}  Kf6 {[%clk 0:00:10]} 78. Kc4 {[%clk 0:00:08]}  Rf1 {[%clk 0:00:10]} 79. Kd3 {[%clk 0:00:07]}  Rf4 {[%clk 0:00:08]} 80. Rxf4+ {[%clk 0:00:07]}  gxf4 {[%clk 0:00:09]} 81. Ke4 {[%clk 0:00:08]}  Kg5 {[%clk 0:00:09]} 82. Kf3 {[%clk 0:00:09]}  Kg6 {[%clk 0:00:10]} 83. Kxf4 {[%clk 0:00:09]}  Kf6 {[%clk 0:00:10]} 84. g5+ {[%clk 0:00:10]}  Kg6 {[%clk 0:00:11]} 85. Kg4 {[%clk 0:00:11]}  Kg7 {[%clk 0:00:11]} 86. Kf5 {[%clk 0:00:11]}  Kf7 {[%clk 0:00:11]} 87. Kg4 {[%clk 0:00:12]}  Kg6 {[%clk 0:00:11]} 88. Kh4 {[%clk 0:00:11]}  Kg7 {[%clk 0:00:11]} 89. Kh5 {[%clk 0:00:12]}  Kh7 {[%clk 0:00:11]} 90. g6+ {[%clk 0:00:13]}  Kg7 {[%clk 0:00:12]} 91. Kg5 {[%clk 0:00:13]}  Kg8 {[%clk 0:00:12]} 92. Kf5 {[%clk 0:00:12]}  Kg7 {[%clk 0:00:12]} 93. Kg5 {[%clk 0:00:12]}  Kg8 {[%clk 0:00:13]} 94. Kh5 {[%clk 0:00:12]}  Kg7 {[%clk 0:00:13]} 95. Kg5 {[%clk 0:00:13]} 1/2-1/2


[Site "https://www.chess.com"]

[Event "Titled Tuesday Blitz May 4 2021"]
[White "Bugayev, Vladimir"]
[Black "Sevian, Samuel"]
[WhiteFideId "30901480"]
[BlackFideId "2040506"]
[WhiteElo "2338"]
[BlackElo "2930"]
[Result "0-1"]
[Round "06"]
[TimeControl "180+1"]
[Date "2021.05.04"]
[WhiteClock "0:00:01"]
[BlackClock "0:00:15"]

1. e4 {[%clk 0:03:00]}  c6 {[%clk 0:00:09]} 2. d4 {[%clk 0:02:53]}  d5 {[%clk 0:00:10]} 3. exd5 {[%clk 0:02:53]}  cxd5 {[%clk 0:00:09]} 4. Bd3 {[%clk 0:02:53]}  Nc6 {[%clk 0:00:10]} 5. c3 {[%clk 0:02:54]}  Nf6 {[%clk 0:00:11]} 6. Bf4 {[%clk 0:02:54]}  g6 {[%clk 0:00:12]} 7. Nf3 {[%clk 0:02:52]}  Bg7 {[%clk 0:00:12]} 8. O-O {[%clk 0:02:48]}  Bf5 {[%clk 0:00:12]} 9. Be2 {[%clk 0:02:48]}  Rc8 {[%clk 0:00:12]} 10. Na3 {[%clk 0:02:43]}  O-O {[%clk 0:00:12]} 11. Nc2 {[%clk 0:02:43]}  Be4 {[%clk 0:00:12]} 12. h3 {[%clk 0:02:26]}  e6 {[%clk 0:00:11]} 13. Ne3 {[%clk 0:02:22]}  Nh5 {[%clk 0:00:11]} 14. Bh2 {[%clk 0:02:21]}  Bxf3 {[%clk 0:00:12]} 15. Bxf3 {[%clk 0:02:20]}  Nf6 {[%clk 0:00:13]} 16. Be2 {[%clk 0:01:47]}  a6 {[%clk 0:00:12]} 17. a4 {[%clk 0:01:47]}  Re8 {[%clk 0:00:13]} 18. Bd3 {[%clk 0:01:40]}  Na5 {[%clk 0:00:12]} 19. f4 {[%clk 0:01:33]}  Nd7 {[%clk 0:00:12]} 20. Ng4 {[%clk 0:01:28]}  Nc6 {[%clk 0:00:12]} 21. Ne5 {[%clk 0:01:28]}  Ne7 {[%clk 0:00:12]} 22. g4 {[%clk 0:01:15]}  f6 {[%clk 0:00:12]} 23. Nf3 {[%clk 0:01:12]}  f5 {[%clk 0:00:12]} 24. Qe2 {[%clk 0:00:53]}  Nc6 {[%clk 0:00:12]} 25. Bg3 {[%clk 0:00:47]}  Nf6 {[%clk 0:00:11]} 26. Bh4 {[%clk 0:00:47]}  Qd6 {[%clk 0:00:12]} 27. Bxf6 {[%clk 0:00:46]}  Bxf6 {[%clk 0:00:13]} 28. g5 {[%clk 0:00:22]}  Bg7 {[%clk 0:00:13]} 29. h4 {[%clk 0:00:22]}  Qxf4 {[%clk 0:00:13]} 30. Qf2 {[%clk 0:00:10]}  e5 {[%clk 0:00:13]} 31. dxe5 {[%clk 0:00:07]}  Nxe5 {[%clk 0:00:14]} 32. Nxe5 {[%clk 0:00:05]}  Qxe5 {[%clk 0:00:15]} 33. Rae1 {[%clk 0:00:03]}  Qd6 {[%clk 0:00:15]} 34. Qg2 {[%clk 0:00:01]}  d4 {[%clk 0:00:15]} 35. c4 {[%clk 0:00:01]}  Re3 {[%clk 0:00:15]} 0-1


[Site "https://www.chess.com"]

[Event "Titled Tuesday Blitz May 4 2021"]
[White "Can, Emre"]
[Black "Zemach, Roee"]
[WhiteFideId "6302181"]
[BlackFideId "2818531"]
[WhiteElo "2503"]
[BlackElo "2131"]
[Result "0-1"]
[Round "06"]
[TimeControl "180+1"]
[Date "2021.05.04"]
[WhiteClock "0:00:06"]
[BlackClock "0:00:08"]

1. e4 {[%clk 0:02:59]}  e5 {[%clk 0:02:56]} 2. Nf3 {[%clk 0:02:58]}  Nc6 {[%clk 0:02:56]} 3. Bb5 {[%clk 0:02:57]}  a6 {[%clk 0:02:56]} 4. Ba4 {[%clk 0:02:58]}  Nf6 {[%clk 0:02:56]} 5. O-O {[%clk 0:02:56]}  Be7 {[%clk 0:02:56]} 6. Bxc6 {[%clk 0:02:55]}  dxc6 {[%clk 0:02:54]} 7. d3 {[%clk 0:02:55]}  Bd6 {[%clk 0:02:51]} 8. Nbd2 {[%clk 0:02:54]}  O-O {[%clk 0:02:51]} 9. Nc4 {[%clk 0:02:51]}  Nd7 {[%clk 0:02:51]} 10. h3 {[%clk 0:02:38]}  Re8 {[%clk 0:02:51]} 11. Nh2 {[%clk 0:02:34]}  Nc5 {[%clk 0:02:49]} 12. f4 {[%clk 0:02:23]}  exf4 {[%clk 0:02:39]} 13. Nxd6 {[%clk 0:02:05]}  cxd6 {[%clk 0:02:32]} 14. Bxf4 {[%clk 0:02:06]}  d5 {[%clk 0:02:33]} 15. exd5 {[%clk 0:02:01]}  Qxd5 {[%clk 0:02:27]} 16. Nf3 {[%clk 0:01:51]}  Be6 {[%clk 0:02:14]} 17. Qd2 {[%clk 0:01:47]}  Rad8 {[%clk 0:02:11]} 18. Qf2 {[%clk 0:01:44]}  Bf5 {[%clk 0:01:46]} 19. a4 {[%clk 0:01:38]}  Ne6 {[%clk 0:01:44]} 20. Bd2 {[%clk 0:01:24]}  Bg6 {[%clk 0:01:35]} 21. a5 {[%clk 0:01:20]}  Nd4 {[%clk 0:01:33]} 22. Nxd4 {[%clk 0:01:14]}  Qxd4 {[%clk 0:01:34]} 23. Bc3 {[%clk 0:01:11]}  Qxf2+ {[%clk 0:01:33]} 24. Kxf2 {[%clk 0:01:11]}  Re6 {[%clk 0:01:31]} 25. Rfe1 {[%clk 0:01:08]}  Rde8 {[%clk 0:01:31]} 26. Rxe6 {[%clk 0:01:08]}  Rxe6 {[%clk 0:01:32]} 27. Ra4 {[%clk 0:01:08]}  f6 {[%clk 0:01:28]} 28. Rd4 {[%clk 0:01:06]}  Kf7 {[%clk 0:01:23]} 29. Bb4 {[%clk 0:01:04]}  Ke8 {[%clk 0:01:23]} 30. Bc5 {[%clk 0:01:03]}  Re5 {[%clk 0:01:20]} 31. b4 {[%clk 0:00:59]}  Rd5 {[%clk 0:01:18]} 32. Rh4 {[%clk 0:00:53]}  Kf7 {[%clk 0:01:14]} 33. Ke3 {[%clk 0:00:51]}  Rg5 {[%clk 0:01:09]} 34. Rd4 {[%clk 0:00:46]}  Rd5 {[%clk 0:01:07]} 35. Rf4 {[%clk 0:00:42]}  Ke6 {[%clk 0:01:04]} 36. g4 {[%clk 0:00:40]}  h5 {[%clk 0:01:03]} 37. Kd2 {[%clk 0:00:37]}  hxg4 {[%clk 0:01:03]} 38. hxg4 {[%clk 0:00:35]}  Rd7 {[%clk 0:00:41]} 39. Rf1 {[%clk 0:00:31]}  Kf7 {[%clk 0:00:32]} 40. Re1 {[%clk 0:00:29]}  f5 {[%clk 0:00:28]} 41. g5 {[%clk 0:00:27]}  Bh5 {[%clk 0:00:25]} 42. Ke3 {[%clk 0:00:25]}  Bg4 {[%clk 0:00:23]} 43. Kf4 {[%clk 0:00:25]}  Bh3 {[%clk 0:00:17]} 44. Rh1 {[%clk 0:00:24]}  Bg4 {[%clk 0:00:17]} 45. Rh8 {[%clk 0:00:23]}  Kg6 {[%clk 0:00:12]} 46. Rf8 {[%clk 0:00:20]}  Bd1 {[%clk 0:00:12]} 47. c3 {[%clk 0:00:14]}  Rxd3 {[%clk 0:00:10]} 48. Bd4 {[%clk 0:00:14]}  Rf3+ {[%clk 0:00:10]} 49. Ke5 {[%clk 0:00:15]}  Rf1 {[%clk 0:00:09]} 50. Rg8 {[%clk 0:00:13]}  f4 {[%clk 0:00:09]} 51. Ke4 {[%clk 0:00:11]}  Bc2+ {[%clk 0:00:08]} 52. Ke5 {[%clk 0:00:11]}  Kxg5 {[%clk 0:00:08]} 53. Rxg7+ {[%clk 0:00:11]}  Kh4 {[%clk 0:00:09]} 54. Rxb7 {[%clk 0:00:11]}  f3 {[%clk 0:00:09]} 55. Kf4 {[%clk 0:00:12]}  f2 {[%clk 0:00:07]} 56. Rb8 {[%clk 0:00:09]}  Kh3 {[%clk 0:00:07]} 57. Rh8+ {[%clk 0:00:09]}  Kg2 {[%clk 0:00:07]} 58. Rg8+ {[%clk 0:00:10]}  Kh3 {[%clk 0:00:08]} 59. c4 {[%clk 0:00:08]}  Rg1 {[%clk 0:00:07]} 60. Rh8+ {[%clk 0:00:08]}  Kg2 {[%clk 0:00:07]} 61. Bxf2 {[%clk 0:00:06]}  Kxf2 {[%clk 0:00:07]} 62. Rh2+ {[%clk 0:00:06]}  Rg2 {[%clk 0:00:07]} 63. Rxg2+ {[%clk 0:00:06]}  Kxg2 {[%clk 0:00:08]} 64. Ke5 {[%clk 0:00:06]}  Bd3 {[%clk 0:00:08]} 65. Kd4 {[%clk 0:00:07]}  Be2 {[%clk 0:00:08]} 66. Kc5 {[%clk 0:00:07]}  Kf3 {[%clk 0:00:08]} 67. b5 {[%clk 0:00:06]}  cxb5 {[%clk 0:00:08]} 0-1


[Site "https://www.chess.com"]

[Event "Titled Tuesday Blitz May 4 2021"]
[White "Chirila, Ioan-Cristian"]
[Black "Escobar Forero, Alder"]
[WhiteFideId "1211668"]
[BlackFideId "4400801"]
[WhiteElo "2445"]
[BlackElo "2513"]
[Result "0-1"]
[Round "06"]
[TimeControl "180+1"]
[Date "2021.05.04"]
[WhiteClock "0:00:02"]
[BlackClock "0:00:25"]

1. d4 {[%clk 0:03:00]}  Nf6 {[%clk 0:02:59]} 2. c4 {[%clk 0:02:55]}  d6 {[%clk 0:02:58]} 3. Nf3 {[%clk 0:02:34]}  Nbd7 {[%clk 0:02:59]} 4. Nc3 {[%clk 0:02:31]}  e5 {[%clk 0:02:58]} 5. g3 {[%clk 0:02:26]}  Be7 {[%clk 0:02:58]} 6. Bg2 {[%clk 0:02:26]}  O-O {[%clk 0:02:58]} 7. O-O {[%clk 0:02:27]}  c6 {[%clk 0:02:58]} 8. Qc2 {[%clk 0:02:08]}  Qc7 {[%clk 0:02:54]} 9. e4 {[%clk 0:01:57]}  a6 {[%clk 0:02:52]} 10. a4 {[%clk 0:01:55]}  a5 {[%clk 0:02:47]} 11. b3 {[%clk 0:01:49]}  exd4 {[%clk 0:02:41]} 12. Nxd4 {[%clk 0:01:49]}  Nc5 {[%clk 0:02:41]} 13. Bf4 {[%clk 0:01:48]}  Re8 {[%clk 0:02:35]} 14. Rfe1 {[%clk 0:01:48]}  Bf8 {[%clk 0:02:35]} 15. Rad1 {[%clk 0:01:48]}  Qb6 {[%clk 0:02:33]} 16. h3 {[%clk 0:01:47]}  h6 {[%clk 0:02:20]} 17. g4 {[%clk 0:01:37]}  Be6 {[%clk 0:02:16]} 18. Be3 {[%clk 0:01:30]}  Rad8 {[%clk 0:02:08]} 19. f4 {[%clk 0:01:29]}  Bc8 {[%clk 0:02:07]} 20. Bf2 {[%clk 0:01:24]}  g6 {[%clk 0:02:01]} 21. e5 {[%clk 0:01:18]}  dxe5 {[%clk 0:01:54]} 22. fxe5 {[%clk 0:01:19]}  Nh7 {[%clk 0:01:51]} 23. e6 {[%clk 0:00:57]}  Bxe6 {[%clk 0:01:24]} 24. Nxe6 {[%clk 0:00:57]}  Rxd1 {[%clk 0:01:24]} 25. Nxd1 {[%clk 0:00:58]}  Rxe6 {[%clk 0:00:42]} 26. Rxe6 {[%clk 0:00:57]}  fxe6 {[%clk 0:00:42]} 27. Qxg6+ {[%clk 0:00:58]}  Bg7 {[%clk 0:00:39]} 28. Nc3 {[%clk 0:00:14]}  Nf8 {[%clk 0:00:31]} 29. Qe8 {[%clk 0:00:02]}  Bxc3 {[%clk 0:00:25]} 0-1


[Site "https://www.chess.com"]

[Event "Titled Tuesday Blitz May 4 2021"]
[White "Cunjalo, Faris"]
[Black "Yoo, Christopher Woojin"]
[WhiteFideId "14410710"]
[BlackFideId "30909694"]
[WhiteElo "2234"]
[BlackElo "2009"]
[Result "0-1"]
[Round "06"]
[TimeControl "180+1"]
[Date "2021.05.04"]
[WhiteClock "0:00:02"]
[BlackClock "0:00:12"]

1. c4 {[%clk 0:03:00]}  e6 {[%clk 0:02:53]} 2. Nc3 {[%clk 0:02:57]}  Nf6 {[%clk 0:02:52]} 3. e4 {[%clk 0:02:57]}  c5 {[%clk 0:02:51]} 4. e5 {[%clk 0:02:54]}  Ng8 {[%clk 0:02:50]} 5. Nf3 {[%clk 0:02:54]}  Nc6 {[%clk 0:02:50]} 6. d4 {[%clk 0:02:54]}  cxd4 {[%clk 0:02:50]} 7. Nxd4 {[%clk 0:02:55]}  Nxe5 {[%clk 0:02:51]} 8. Ndb5 {[%clk 0:02:55]}  a6 {[%clk 0:02:48]} 9. Nd6+ {[%clk 0:02:55]}  Bxd6 {[%clk 0:02:48]} 10. Qxd6 {[%clk 0:02:56]}  f6 {[%clk 0:02:48]} 11. Be3 {[%clk 0:02:55]}  Ne7 {[%clk 0:02:30]} 12. Bb6 {[%clk 0:02:55]}  Nf5 {[%clk 0:02:24]} 13. Qb4 {[%clk 0:02:55]}  Qe7 {[%clk 0:02:21]} 14. Qb3 {[%clk 0:02:28]}  d6 {[%clk 0:02:17]} 15. Be2 {[%clk 0:02:26]}  Bd7 {[%clk 0:02:13]} 16. f4 {[%clk 0:02:05]}  Ng6 {[%clk 0:02:08]} 17. Rf1 {[%clk 0:01:52]}  Bc6 {[%clk 0:02:06]} 18. g4 {[%clk 0:01:52]}  Nfh4 {[%clk 0:02:05]} 19. O-O-O {[%clk 0:01:53]}  f5 {[%clk 0:01:37]} 20. gxf5 {[%clk 0:01:29]}  Nxf5 {[%clk 0:01:38]} 21. Bd3 {[%clk 0:00:43]}  O-O {[%clk 0:01:36]} 22. Rde1 {[%clk 0:00:43]}  Qf7 {[%clk 0:01:31]} 23. c5 {[%clk 0:00:33]}  d5 {[%clk 0:01:29]} 24. Ne2 {[%clk 0:00:28]}  Bd7 {[%clk 0:01:14]} 25. Rf2 {[%clk 0:00:22]}  e5 {[%clk 0:00:54]} 26. fxe5 {[%clk 0:00:19]}  Nxe5 {[%clk 0:00:55]} 27. Bc2 {[%clk 0:00:17]}  Nc4 {[%clk 0:00:50]} 28. Ng3 {[%clk 0:00:06]}  Qg6 {[%clk 0:00:48]} 29. Kb1 {[%clk 0:00:02]}  Qg4 {[%clk 0:00:29]} 30. Qd3 {[%clk 0:00:03]}  Qd4 {[%clk 0:00:12]} 31. Nxf5 {[%clk 0:00:02]}  Qxb2# {[%clk 0:00:12]} 0-1


[Site "https://www.chess.com"]

[Event "Titled Tuesday Blitz May 4 2021"]
[White "Darini, Pouria"]
[Black "Vukovic, Zdravko"]
[WhiteFideId "12502200"]
[BlackFideId "900877"]
[WhiteElo "2489"]
[BlackElo "2487"]
[Result "1/2-1/2"]
[Round "06"]
[TimeControl "180+1"]
[Date "2021.05.04"]
[WhiteClock "0:00:20"]
[BlackClock "0:00:29"]

1. e4 {[%clk 0:03:00]}  d5 {[%clk 0:02:59]} 2. exd5 {[%clk 0:03:00]}  Qxd5 {[%clk 0:02:59]} 3. Nc3 {[%clk 0:03:01]}  Qd8 {[%clk 0:02:59]} 4. d4 {[%clk 0:03:02]}  Nf6 {[%clk 0:03:00]} 5. Nf3 {[%clk 0:03:03]}  c6 {[%clk 0:03:00]} 6. Ne5 {[%clk 0:03:02]}  Nbd7 {[%clk 0:02:59]} 7. Bf4 {[%clk 0:02:58]}  Nxe5 {[%clk 0:02:59]} 8. Bxe5 {[%clk 0:02:59]}  Bf5 {[%clk 0:02:59]} 9. Bd3 {[%clk 0:02:55]}  Bg6 {[%clk 0:02:56]} 10. Qf3 {[%clk 0:02:49]}  Bxd3 {[%clk 0:02:53]} 11. Qxd3 {[%clk 0:02:49]}  e6 {[%clk 0:02:53]} 12. O-O-O {[%clk 0:02:46]}  Bb4 {[%clk 0:02:47]} 13. Ne4 {[%clk 0:02:38]}  Nxe4 {[%clk 0:02:33]} 14. Qxe4 {[%clk 0:02:39]}  Qd5 {[%clk 0:02:25]} 15. Qxd5 {[%clk 0:02:08]}  cxd5 {[%clk 0:02:22]} 16. c3 {[%clk 0:02:08]}  Be7 {[%clk 0:02:06]} 17. a4 {[%clk 0:02:09]}  Kd7 {[%clk 0:02:01]} 18. Rhe1 {[%clk 0:02:07]}  Rhg8 {[%clk 0:01:50]} 19. Kc2 {[%clk 0:02:05]}  g6 {[%clk 0:01:46]} 20. Kd3 {[%clk 0:02:01]}  Rgc8 {[%clk 0:01:46]} 21. h4 {[%clk 0:01:56]}  h5 {[%clk 0:01:45]} 22. g3 {[%clk 0:01:54]}  a6 {[%clk 0:01:40]} 23. a5 {[%clk 0:01:49]}  Rc6 {[%clk 0:01:38]} 24. Ra1 {[%clk 0:01:41]}  b5 {[%clk 0:01:22]} 25. axb6 {[%clk 0:01:40]}  Rxb6 {[%clk 0:01:22]} 26. Ra2 {[%clk 0:01:39]}  a5 {[%clk 0:01:17]} 27. Rea1 {[%clk 0:01:35]}  a4 {[%clk 0:01:17]} 28. Kc2 {[%clk 0:01:30]}  f6 {[%clk 0:01:12]} 29. Bf4 {[%clk 0:01:29]}  Rba6 {[%clk 0:01:06]} 30. Kd3 {[%clk 0:01:30]}  Kc6 {[%clk 0:01:03]} 31. b3 {[%clk 0:01:15]}  a3 {[%clk 0:00:58]} 32. Bc1 {[%clk 0:01:06]}  g5 {[%clk 0:00:49]} 33. b4 {[%clk 0:00:58]}  g4 {[%clk 0:00:44]} 34. Rxa3 {[%clk 0:00:48]}  Rxa3 {[%clk 0:00:43]} 35. Rxa3 {[%clk 0:00:49]}  Rxa3 {[%clk 0:00:43]} 36. Bxa3 {[%clk 0:00:50]}  Kb5 {[%clk 0:00:44]} 37. Bc1 {[%clk 0:00:51]}  f5 {[%clk 0:00:44]} 38. Bf4 {[%clk 0:00:49]}  Bf8 {[%clk 0:00:42]} 39. Be5 {[%clk 0:00:49]}  Bh6 {[%clk 0:00:42]} 40. Bf4 {[%clk 0:00:48]}  Bf8 {[%clk 0:00:38]} 41. Bg5 {[%clk 0:00:48]}  Bd6 {[%clk 0:00:38]} 42. Bd2 {[%clk 0:00:48]}  Bf8 {[%clk 0:00:35]} 43. Bc1 {[%clk 0:00:49]}  Be7 {[%clk 0:00:35]} 44. Bh6 {[%clk 0:00:49]}  Bd6 {[%clk 0:00:35]} 45. Bg5 {[%clk 0:00:49]}  Bf8 {[%clk 0:00:35]} 46. Bf6 {[%clk 0:00:49]}  Bd6 {[%clk 0:00:35]} 47. Bd8 {[%clk 0:00:43]}  Bf8 {[%clk 0:00:32]} 48. Bc7 {[%clk 0:00:43]}  Bh6 {[%clk 0:00:31]} 49. Kc2 {[%clk 0:00:43]}  Kc4 {[%clk 0:00:31]} 50. Bd6 {[%clk 0:00:41]}  Bg7 {[%clk 0:00:27]} 51. Bf4 {[%clk 0:00:41]}  Bf8 {[%clk 0:00:27]} 52. Bd2 {[%clk 0:00:40]}  Bd6 {[%clk 0:00:26]} 53. Bc1 {[%clk 0:00:38]}  e5 {[%clk 0:00:27]} 54. dxe5 {[%clk 0:00:34]}  Bxe5 {[%clk 0:00:27]} 55. Bd2 {[%clk 0:00:35]}  d4 {[%clk 0:00:27]} 56. cxd4 {[%clk 0:00:33]}  Bxd4 {[%clk 0:00:28]} 57. Be1 {[%clk 0:00:33]}  Bb6 {[%clk 0:00:27]} 58. Kd1 {[%clk 0:00:32]}  Bd4 {[%clk 0:00:28]} 59. Ke2 {[%clk 0:00:32]}  Bb6 {[%clk 0:00:28]} 60. Bd2 {[%clk 0:00:32]}  Bd4 {[%clk 0:00:28]} 61. Be1 {[%clk 0:00:32]}  Bb6 {[%clk 0:00:28]} 62. Kd1 {[%clk 0:00:33]}  Bd4 {[%clk 0:00:29]} 63. Kc2 {[%clk 0:00:33]}  Bb6 {[%clk 0:00:29]} 64. Kd1 {[%clk 0:00:20]} 1/2-1/2


[Site "https://www.chess.com"]

[Event "Titled Tuesday Blitz May 4 2021"]
[White "Degtiarev, Evgeny"]
[Black "Garcia, Gabriel Gonzaga"]
[WhiteFideId "4149610"]
[BlackFideId "2138956"]
[WhiteElo "2218"]
[BlackElo "2240"]
[Result "1-0"]
[Round "06"]
[TimeControl "180+1"]
[Date "2021.05.04"]
[WhiteClock "0:01:10"]
[BlackClock "0:00:03"]

1. d4 {[%clk 0:03:00]}  Nf6 {[%clk 0:02:55]} 2. c4 {[%clk 0:03:00]}  e6 {[%clk 0:02:55]} 3. Nc3 {[%clk 0:03:01]}  Bb4 {[%clk 0:02:56]} 4. e3 {[%clk 0:03:01]}  O-O {[%clk 0:02:55]} 5. Ne2 {[%clk 0:02:59]}  d5 {[%clk 0:02:56]} 6. cxd5 {[%clk 0:02:58]}  exd5 {[%clk 0:02:55]} 7. g3 {[%clk 0:02:59]}  Bg4 {[%clk 0:02:54]} 8. Bg2 {[%clk 0:02:55]}  Ne4 {[%clk 0:02:53]} 9. f3 {[%clk 0:02:49]}  Bxc3+ {[%clk 0:01:15]} 10. bxc3 {[%clk 0:02:47]}  f5 {[%clk 0:01:11]} 11. O-O {[%clk 0:02:38]}  Bxf3 {[%clk 0:01:07]} 12. Bxf3 {[%clk 0:02:33]}  c6 {[%clk 0:01:08]} 13. Bxe4 {[%clk 0:02:27]}  fxe4 {[%clk 0:01:09]} 14. Ba3 {[%clk 0:02:26]}  Rxf1+ {[%clk 0:01:06]} 15. Qxf1 {[%clk 0:02:27]}  Na6 {[%clk 0:00:58]} 16. Qf5 {[%clk 0:02:25]}  Qc8 {[%clk 0:00:55]} 17. Rf1 {[%clk 0:02:22]}  Qxf5 {[%clk 0:00:51]} 18. Rxf5 {[%clk 0:02:23]}  Nc7 {[%clk 0:00:49]} 19. Re5 {[%clk 0:02:14]}  Nb5 {[%clk 0:00:43]} 20. Bb4 {[%clk 0:02:03]}  a5 {[%clk 0:00:40]} 21. Bc5 {[%clk 0:02:03]}  Rb8 {[%clk 0:00:32]} 22. a4 {[%clk 0:01:50]}  Nc7 {[%clk 0:00:28]} 23. Bd6 {[%clk 0:01:49]}  Rc8 {[%clk 0:00:28]} 24. Re7 {[%clk 0:01:37]}  Ne8 {[%clk 0:00:28]} 25. Bc5 {[%clk 0:01:27]}  b5 {[%clk 0:00:27]} 26. Ra7 {[%clk 0:01:25]}  bxa4 {[%clk 0:00:24]} 27. Rxa5 {[%clk 0:01:25]}  Rb8 {[%clk 0:00:24]} 28. Bb4 {[%clk 0:01:21]}  Nf6 {[%clk 0:00:19]} 29. h3 {[%clk 0:01:16]}  Nd7 {[%clk 0:00:13]} 30. Rxa4 {[%clk 0:01:15]}  Nb6 {[%clk 0:00:13]} 31. Ra7 {[%clk 0:01:13]}  Nc4 {[%clk 0:00:13]} 32. Kf2 {[%clk 0:01:11]}  Re8 {[%clk 0:00:03]} 33. Nf4 {[%clk 0:01:10]} 1-0


[Site "https://www.chess.com"]